bitfinex-derivatives/quotes_SOLF0:USTF0_20220109
["timestamp","ask_amount","ask_price","bid_price","bid_amount"]
[1641735616221,88.18793726,139.51,139.43,35.94879]
[1641735616422,88.18793726,139.51,139.43,39.94879]
[1641735616623,27.66479,139.51,139.43,35.94879]
[1641735616822,27.66479,139.51,139.43,39.94879]
[1641735617225,27.66479,139.51,139.44,4.0]
[1641735617423,27.66479,139.51,139.45,4.0]
[1641735617624,27.66479,139.53,139.45,4.0]
[1641735617825,41.51950072,139.56,139.46,4.0]
[1641735618026,62.01429,139.56,139.48,27.66479]
[1641735618225,27.66479,139.56,139.48,27.66479]
[1641735618826,27.66479,139.56,139.46,7.886]
[1641735619025,31.66479,139.56,139.46,1.791]
[1641735619227,4.0,139.54,139.42,7.16922967]
[1641735619425,27.66479,139.56,139.41,35.3532]
[1641735619426,27.54253294,139.55,139.41,35.3532]
[1641735619627,4.0,139.54,139.41,33.5622]
[1641735619825,4.0,139.53,139.41,33.5622]
[1641735620025,27.66479,139.49,139.41,61.22699]
[1641735620228,33.74979,139.49,139.4,1.792]
[1641735620427,33.74979,139.49,139.39,27.66479]
[1641735621525,33.74979,139.49,139.38,68.2226]
[1641735621927,27.66479,139.43,139.38,68.2226]
[1641735622226,61.13719,139.49,139.37,4.0]
[1641735622525,61.13719,139.49,139.36,38.1328]
[1641735622725,61.13719,139.49,139.37,5.793]
[1641735622926,61.13719,139.49,139.37,7.912]
[1641735623125,61.13719,139.49,139.38,7.17128617]
[1641735623425,61.13719,139.49,139.39,1.792]
[1641735623625,27.66479,139.49,139.39,1.792]
[1641735624026,27.66479,139.49,139.4,27.66479]
[1641735625526,29.66479,139.49,139.4,27.66479]
[1641735625928,33.66479,139.49,139.4,27.66479]
[1641735626129,29.66479,139.49,139.4,27.66479]
[1641735628228,27.66479,139.46,139.4,27.66479]
[1641735628429,29.66479,139.49,139.4,31.66479]
[1641735628627,2.0,139.49,139.4,33.79079]
[1641735628828,2.0,139.49,139.4,37.79079]
[1641735629528,2.0,139.49,139.4,33.79079]
[1641735630130,27.66479,139.48,139.4,33.79079]
[1641735630328,27.66479,139.48,139.4,27.66479]
[1641735630530,2.0,139.49,139.4,27.66479]
[1641735630732,2.0,139.49,139.42,4.0]
[1641735631632,2.0,139.49,139.41,12.96148666]
[1641735631833,2.0,139.49,139.41,8.96148666]
[1641735632833,2.0,139.49,139.41,12.96148666]
[1641735633033,2.0,139.49,139.41,8.96148666]
[1641735634935,2.0,139.49,139.41,7.16948666]
[1641735636336,2.0,139.49,139.41,11.16948666]
[1641735636538,2.0,139.49,139.41,7.16948666]
[1641735638037,2.0,139.49,139.4,55.32958]
[1641735638038,27.66479,139.46,139.4,55.32958]
[1641735638237,36.35679,139.46,139.4,55.32958]
[1641735640740,4.0,139.44,139.4,55.32958]
[1641735641140,36.35679,139.46,139.4,55.32958]
[1641735642344,36.35679,139.46,139.36,34.1328]
[1641735642541,4.0,139.45,139.35,1.793]
[1641735642741,4.0,139.43,139.33,43.58823231]
[1641735642941,4.0,139.43,139.33,1.793]
[1641735642942,12.709,139.43,139.33,1.793]
[1641735643342,8.709,139.43,139.33,1.793]
[1641735643543,8.709,139.43,139.33,34.0634]
[1641735643744,15.20941646,139.41,139.33,34.0634]
[1641735643945,15.20941646,139.41,139.34,4.0]
[1641735644145,15.20941646,139.41,139.36,27.66479]
[1641735644745,15.20941646,139.41,139.37,8.96454332]
[1641735644950,15.20941646,139.44,139.37,17.72654332]
[1641735645948,42.87420646,139.46,139.37,17.72654332]
[1641735646846,42.87420646,139.46,139.37,21.72654332]
[1641735647045,15.20941646,139.47,139.37,21.72654332]
[1641735647246,15.20941646,139.47,139.38,4.0]
[1641735647448,15.20941646,139.47,139.39,1.793]
[1641735647646,15.20941646,139.47,139.37,1.793]
[1641735647846,6.016,139.47,139.37,1.793]
[1641735648546,6.016,139.47,139.37,8.96480048]
[1641735648949,15.20941646,139.45,139.37,14.70486119]
[1641735649248,15.20941646,139.45,139.37,18.70486119]
[1641735649846,15.20941646,139.47,139.37,18.70486119]
[1641735650049,15.20941646,139.47,139.37,27.58386119]
[1641735650247,15.20941646,139.47,139.4,27.66479]
[1641735650446,15.20941646,139.47,139.4,35.36879]
[1641735650846,70.53899646,139.48,139.4,35.36879]
[1641735651247,42.87420646,139.48,139.4,35.36879]
[1641735651446,15.20941646,139.48,139.4,35.36879]
[1641735652247,44.87420646,139.49,139.4,35.36879]
[1641735652949,15.20941646,139.47,139.4,35.36879]
[1641735653948,15.20941646,139.48,139.4,35.36879]
[1641735655449,17.20941646,139.48,139.4,35.36879]
[1641735655649,17.20941646,139.48,139.4,27.66479]
[1641735656250,17.60515191,139.47,139.4,27.66479]
[1641735657452,27.06315191,139.47,139.39,1.792]
[1641735657652,27.06315191,139.47,139.38,1.793]
[1641735657851,31.06315191,139.47,139.36,27.66479]
[1641735658054,31.06315191,139.47,139.35,49.50261646]
[1641735658253,27.66479,139.42,139.35,49.50261646]
[1641735658453,33.70979,139.42,139.35,34.2932]
[1641735659754,2.39573545,139.41,139.35,34.2932]
[1641735660455,27.66479,139.42,139.35,34.2932]
[1641735662455,42.87420646,139.44,139.35,34.2932]
[1641735663258,2.39615924,139.43,139.35,34.2932]
[1641735665860,2.39615924,139.43,139.36,2.67630726]
[1641735666659,2.39615924,139.43,139.35,34.2932]
[1641735667562,40.13837773,139.47,139.4,7.17025777]
[1641735667761,40.13837773,139.47,139.42,4.0]
[1641735667961,40.13837773,139.47,139.44,7.16820186]
[1641735668160,40.13837773,139.52,139.44,17.95720186]
[1641735668362,40.13837773,139.52,139.47,55.32958]
[1641735668561,40.13837773,139.52,139.47,63.39458]
[1641735669159,38.13837773,139.52,139.47,63.39458]
[1641735669559,9.76740676,139.54,139.47,63.39458]
[1641735669763,4.0,139.53,139.44,7.16820186]
[1641735669965,4.0,139.53,139.42,34.5795]
[1641735670367,27.66479,139.53,139.43,27.66479]
[1641735671464,27.66479,139.53,139.44,7.16820186]
[1641735671966,27.66479,139.53,139.44,7.98277648]
[1641735672166,27.66479,139.53,139.44,11.98277648]
[1641735672366,27.66479,139.53,139.45,0.81457462]
[1641735672567,4.0,139.56,139.45,0.81457462]
[1641735672767,2.0,139.53,139.45,8.13657462]
[1641735673468,2.0,139.53,139.45,7.322]
[1641735676370,2.0,139.53,139.46,27.66479]
[1641735678273,2.0,139.53,139.45,7.322]
[1641735678474,2.0,139.53,139.44,12.96020186]
[1641735678475,2.0,139.53,139.44,8.96020186]
[1641735678674,2.0,139.53,139.44,7.16820186]
[1641735680174,4.0,139.51,139.43,27.66479]
[1641735680378,27.66479,139.49,139.42,34.5795]
[1641735680575,27.66479,139.49,139.4,7.17000072]
[1641735681376,27.66479,139.49,139.41,0.81474991]
[1641735681777,27.66479,139.49,139.42,1.792]
[1641735681977,27.66479,139.49,139.42,8.027]
[1641735682178,2.0,139.53,139.42,8.027]
[1641735682380,2.0,139.53,139.44,27.66479]
[1641735683981,2.0,139.53,139.44,29.45679]
[1641735684581,2.0,139.53,139.44,62.70429]
[1641735685282,27.66479,139.54,139.44,62.70429]
[1641735685483,2.0,139.49,139.44,62.70429]
[1641735685884,2.0,139.49,139.45,4.0]
[1641735686088,69.8637,139.58,139.45,12.453]
[1641735686285,69.8637,139.58,139.47,5.73568871]
[1641735686485,27.66479,139.56,139.47,33.40047871]
[1641735686685,25.66479,139.56,139.47,33.40047871]
[1641735687385,25.66479,139.56,139.47,40.56688261]
[1641735687784,25.66479,139.56,139.47,34.8311939]
[1641735688186,25.66479,139.56,139.48,4.0]
[1641735688388,27.66479,139.61,139.53,27.66479]
[1641735688588,27.66479,139.61,139.53,36.70979]
[1641735689387,27.66479,139.63,139.53,36.70979]
[1641735689587,27.66479,139.63,139.54,1.791]
[1641735689788,27.66479,139.63,139.53,70.55009]
[1641735690086,27.66479,139.63,139.54,7.16306723]
[1641735690286,2.0,139.61,139.54,7.16306723]
[1641735690489,2.0,139.61,139.56,27.66479]
[1641735690690,2.0,139.61,139.56,35.74479]
[1641735691291,2.0,139.61,139.56,42.90657472]
[1641735691591,2.0,139.61,139.57,1.791]
[1641735691789,35.466,139.69,139.59,7.16050267]
[1641735691990,40.34625927,139.7,139.59,16.68750267]
[1641735692391,38.34625927,139.7,139.64,27.66479]
[1641735692590,38.34625927,139.7,139.64,35.55379]
[1641735692789,27.66479,139.71,139.64,35.55379]
[1641735692991,27.66479,139.71,139.65,7.15717149]
[1641735693390,27.66479,139.71,139.64,35.55379]
[1641735693892,27.66479,139.71,139.64,42.71172994]
[1641735694494,27.66479,139.71,139.63,1.789]
[1641735694793,36.40879,139.71,139.6,7.15973366]
[1641735695193,36.40879,139.71,139.6,8.94973366]
[1641735695394,36.40879,139.71,139.62,7.15896481]
[1641735695595,36.40879,139.71,139.62,13.50496481]
[1641735695795,38.40879,139.71,139.62,13.50496481]
[1641735696697,38.40879,139.71,139.62,8.94796481]
[1641735697296,42.40879,139.71,139.62,8.94796481]
[1641735697498,38.40879,139.71,139.62,8.94796481]
[1641735697699,38.40879,139.71,139.62,7.15896481]
[1641735697897,38.40879,139.71,139.61,27.66479]
[1641735699499,29.66479,139.71,139.61,27.66479]
[1641735699900,29.66479,139.71,139.62,7.15896481]
[1641735700099,29.66479,139.71,139.63,4.0]
[1641735700300,29.66479,139.71,139.64,1.789]
[1641735700501,29.66479,139.71,139.66,27.66479]
[1641735701502,29.66479,139.71,139.65,7.15742762]
[1641735702703,4.0,139.7,139.63,1.789]
[1641735702903,40.26879,139.71,139.61,7.15922108]
[1641735703105,36.26879,139.71,139.65,4.0]
[1641735703403,8.604,139.71,139.65,23.22274991]
[1641735703603,2.0,139.71,139.66,1.789]
[1641735704609,2.0,139.71,139.65,7.15717149]
[1641735704806,9.512,139.71,139.65,7.15717149]
[1641735705207,9.512,139.71,139.61,29.45379]
[1641735705408,9.512,139.71,139.62,7.15896481]
[1641735705707,9.512,139.71,139.63,1.789]
[1641735706912,9.512,139.71,139.65,7.15717149]
[1641735707611,9.512,139.71,139.65,11.15717149]
[1641735707811,9.512,139.71,139.66,4.0]
[1641735708013,9.512,139.71,139.68,7.15589109]
[1641735708414,9.512,139.71,139.66,1.789]
[1641735708613,9.512,139.71,139.65,7.15717149]
[1641735708813,2.0,139.71,139.65,7.15717149]
[1641735709214,2.0,139.71,139.68,7.15563506]
[1641735709415,2.0,139.71,139.68,15.28963506]
[1641735710015,2.0,139.71,139.69,1.789]
[1641735710615,2.0,139.71,139.68,7.15563506]
[1641735711314,2.0,139.71,139.65,27.66479]
[1641735711517,2.0,139.71,139.66,1.789]
[1641735712917,2.0,139.71,139.66,5.789]
[1641735713318,2.0,139.71,139.66,1.789]
[1641735713718,2.0,139.71,139.67,4.0]
[1641735713919,2.0,139.71,139.68,1.789]
[1641735714120,2.0,139.71,139.69,7.15537906]
[1641735714519,2.0,139.71,139.67,7.15640319]
[1641735714920,8.701,139.71,139.67,7.15640319]
[1641735715221,8.701,139.71,139.63,8.94745234]
[1641735715420,8.701,139.71,139.63,7.15845234]
[1641735716320,8.701,139.71,139.64,1.789]
[1641735717620,2.0,139.71,139.64,1.789]
[1641735718622,2.0,139.71,139.64,29.45379]
[1641735719427,4.0,139.7,139.64,1.789]
[1641735719625,6.0,139.71,139.64,1.789]
[1641735719824,6.0,139.71,139.61,61.82299]
[1641735720025,6.0,139.71,139.61,60.03399]
[1641735720426,2.0,139.71,139.61,60.03399]
[1641735720627,27.66479,139.69,139.61,60.03399]
[1641735721328,4.0,139.68,139.62,2.67204695]
[1641735722227,2.39019933,139.67,139.6,2.67204695]
[1641735722627,2.39019933,139.67,139.6,6.67204695]
[1641735722830,2.39019933,139.67,139.66,7.15691537]
[1641735723029,15.07923325,139.69,139.66,9.243]
[1641735723229,2.0,139.71,139.66,9.243]
[1641735724130,2.0,139.71,139.63,34.07368559]
[1641735724328,2.0,139.71,139.63,30.07368559]
[1641735724729,2.0,139.71,139.65,27.66479]
[1641735725731,2.0,139.71,139.63,8.94745234]
[1641735725931,9.623,139.71,139.63,8.94745234]
[1641735726330,9.623,139.71,139.64,2.67427391]
[1641735726831,27.66479,139.7,139.64,2.67427391]
[1641735727032,30.05647646,139.7,139.64,2.67427391]
[1641735727532,2.39168646,139.69,139.63,2.67427391]
[1641735728133,4.0,139.68,139.63,2.67427391]
[1641735728335,6.524,139.68,139.63,2.67427391]
[1641735729541,2.39168646,139.67,139.6,4.46427391]
[1641735730041,15.07923325,139.69,139.6,4.46427391]
[1641735730240,15.07923325,139.7,139.61,12.40429842]
[1641735730440,15.07923325,139.7,139.62,8.94896481]
[1641735730642,15.07923325,139.7,139.63,27.66479]
[1641735731442,2.39222829,139.7,139.64,2.67427391]
[1641735731642,2.39222829,139.7,139.64,4.46327391]
[1641735732044,2.39222829,139.7,139.65,2.67427391]
[1641735733043,2.39222829,139.7,139.64,2.67427391]
[1641735733945,8.13422829,139.7,139.64,2.67427391]
[1641735734846,35.79901829,139.7,139.64,2.67427391]
[1641735735247,2.39222829,139.69,139.64,2.67427391]
[1641735736051,2.39222829,139.69,139.63,2.67427391]
[1641735739353,6.39222829,139.69,139.63,2.67427391]
[1641735739654,2.39222829,139.69,139.63,2.67427391]
[1641735740655,4.0,139.67,139.63,2.67427391]
[1641735740856,12.35,139.67,139.63,2.67427391]
[1641735741256,40.01479,139.67,139.63,2.67427391]
[1641735741455,4.0,139.66,139.63,2.67427391]
[1641735741654,36.01479,139.67,139.63,2.67427391]
[1641735741655,27.66479,139.67,139.63,2.67427391]
[1641735741855,27.66479,139.67,139.6,11.62400757]
[1641735742055,27.66479,139.67,139.61,1.79]
[1641735742256,27.66479,139.67,139.6,11.62400757]
[1641735742755,27.66479,139.67,139.62,2.67427391]
[1641735743356,31.66479,139.67,139.62,2.67427391]
[1641735743557,27.66479,139.67,139.61,2.67427391]
[1641735744357,27.66479,139.67,139.6,2.67427391]
[1641735745457,29.66479,139.67,139.6,2.67427391]
[1641735745858,29.66479,139.67,139.6,28.26860829]
[1641735746459,29.66479,139.67,139.6,17.75350716]
[1641735746759,2.39356665,139.66,139.6,2.67427391]
[1641735747359,6.39356665,139.66,139.6,2.67427391]
[1641735747558,2.39356665,139.66,139.6,2.67427391]
[1641735747759,6.39356665,139.66,139.6,2.67427391]
[1641735748360,2.39356665,139.65,139.6,2.67427391]
[1641735749060,2.39356665,139.66,139.6,2.67427391]
[1641735751662,2.39356665,139.66,139.61,0.81358561]
[1641735751862,2.39356665,139.66,139.6,2.67427391]
[1641735752063,29.66479,139.67,139.6,2.67427391]
[1641735752265,33.66479,139.67,139.6,2.67427391]
[1641735752463,29.66479,139.67,139.6,2.67427391]
[1641735758270,29.66479,139.67,139.6,10.61727391]
[1641735759071,2.0,139.67,139.6,10.61727391]
[1641735759271,2.0,139.67,139.61,7.15947736]
[1641735759470,2.0,139.67,139.61,11.62375127]
[1641735759672,2.0,139.67,139.63,27.66479]
[1641735760274,2.0,139.67,139.63,34.59779]
[1641735760472,2.0,139.67,139.64,2.67427391]
[1641735764579,6.0,139.67,139.64,2.67427391]
[1641735764779,2.0,139.67,139.64,2.67427391]
[1641735767184,2.0,139.67,139.64,11.23427391]
[1641735767985,2.0,139.67,139.65,2.67427391]
[1641735768784,2.0,139.67,139.64,2.67427391]
[1641735771588,10.08,139.67,139.64,2.67427391]
[1641735771988,10.08,139.67,139.63,27.66479]
[1641735773791,10.08,139.67,139.64,2.67666906]
[1641735774691,10.08,139.67,139.63,27.66479]
[1641735775291,10.08,139.67,139.64,2.67655647]
[1641735775892,2.0,139.67,139.64,2.67655647]
[1641735780799,6.0,139.67,139.64,2.67655647]
[1641735781202,8.037,139.67,139.64,2.67655647]
[1641735781799,12.037,139.67,139.63,27.66479]
[1641735782301,39.70179,139.67,139.61,39.45247736]
[1641735782604,4.0,139.65,139.61,7.15947736]
[1641735782804,39.70179,139.67,139.62,2.67935549]
[1641735783403,2.39637495,139.66,139.62,2.67935549]
[1641735784104,6.39637495,139.66,139.62,2.67935549]
[1641735784803,4.0,139.65,139.62,2.67935549]
[1641735787307,4.0,139.65,139.6,2.67935549]
[1641735787908,4.0,139.64,139.6,2.67935549]
[1641735788109,4.0,139.65,139.6,2.67935549]
[1641735790510,4.0,139.64,139.6,2.67935549]
[1641735790711,27.66479,139.61,139.59,25.60545417]
[1641735790912,4.0,139.6,139.59,10.52622092]
[1641735791113,4.0,139.6,139.56,40.056523]
[1641735791314,4.0,139.6,139.55,15.22323642]
[1641735792414,4.0,139.6,139.52,34.54542724]
[1641735792616,27.66479,139.55,139.51,76.545523]
[1641735792814,41.00079,139.55,139.51,40.056523]
[1641735793014,4.0,139.54,139.52,0.81408682]
[1641735793413,4.0,139.54,139.47,128.24446026]
[1641735793614,4.0,139.54,139.47,67.721313]
[1641735793813,4.0,139.54,139.48,0.81418156]
[1641735796918,27.66479,139.55,139.48,0.81418156]
[1641735797119,4.0,139.51,139.48,0.81418156]
[1641735797320,11.552,139.51,139.48,0.81418156]
[1641735797517,4.0,139.5,139.48,0.81418156]
[1641735797719,11.552,139.51,139.46,0.81418156]
[1641735798118,11.552,139.51,139.45,0.81418156]
[1641735798620,39.21679,139.51,139.45,0.81418156]
[1641735799121,4.0,139.5,139.45,0.81418156]
[1641735799421,39.21679,139.51,139.45,0.81418156]
[1641735799823,4.0,139.5,139.45,0.81418156]
[1641735801024,39.21679,139.51,139.45,0.81418156]
[1641735801227,27.66479,139.55,139.48,4.0]
[1641735801425,4.0,139.59,139.51,7.16460684]
[1641735801627,4.0,139.6,139.51,14.54460684]
[1641735801824,4.0,139.59,139.51,14.54460684]
[1641735802026,4.0,139.59,139.52,0.81418156]
[1641735802431,4.0,139.62,139.52,0.81418156]
[1641735802627,27.66479,139.61,139.52,30.26997156]
[1641735803027,31.66479,139.61,139.52,30.26997156]
[1641735803326,4.0,139.6,139.53,0.81418156]
[1641735803526,4.0,139.58,139.53,0.81418156]
[1641735803727,4.0,139.59,139.53,0.81418156]
[1641735804226,31.66479,139.61,139.53,0.81418156]
[1641735804826,4.0,139.6,139.53,0.81418156]
[1641735805029,4.0,139.59,139.53,0.81418156]
[1641735805429,6.0,139.59,139.53,0.81418156]
[1641735805629,4.0,139.58,139.53,0.81418156]
[1641735805830,6.0,139.59,139.53,0.81418156]
[1641735806531,2.0,139.59,139.53,0.81418156]
[1641735806831,4.0,139.7,139.58,7.16075904]
[1641735807031,4.0,139.7,139.59,1.79]
[1641735807431,4.0,139.7,139.6,0.81418156]
[1641735807633,4.0,139.69,139.6,0.81418156]
[1641735808731,31.66479,139.68,139.6,0.81418156]
[1641735808930,4.0,139.67,139.6,0.81418156]
[1641735809632,4.0,139.66,139.6,0.81418156]
[1641735809833,27.66479,139.68,139.6,0.81418156]
[1641735810833,2.0,139.67,139.6,0.81418156]
[1641735811033,6.0,139.67,139.6,0.81418156]
[1641735813836,4.0,139.65,139.6,0.81418156]
[1641735814037,4.0,139.65,139.59,27.66479]
[1641735814235,4.0,139.66,139.59,27.66479]
[1641735814437,2.0,139.67,139.59,27.66479]
[1641735814636,2.0,139.67,139.61,4.0]
[1641735815037,2.0,139.67,139.6,6.6035949]
[1641735815238,2.0,139.67,139.62,4.0]
[1641735815441,2.0,139.67,139.63,1.79]
[1641735816437,2.0,139.67,139.62,5.79]
[1641735816840,2.0,139.67,139.62,29.45479]
[1641735817039,2.0,139.67,139.62,33.45479]
[1641735818441,2.0,139.67,139.62,29.45479]
[1641735818643,2.0,139.67,139.62,33.45479]
[1641735818842,27.66479,139.74,139.66,31.66479]
[1641735819044,73.7503,139.78,139.67,4.0]
[1641735819243,4.0,139.79,139.68,4.0]
[1641735819446,4.0,139.79,139.7,4.0]
[1641735819644,33.54,139.8,139.7,9.337]
[1641735819845,4.0,139.78,139.7,9.337]
[1641735820846,31.66479,139.78,139.7,9.337]
[1641735821846,27.66479,139.78,139.7,9.337]
[1641735822047,4.0,139.76,139.7,9.337]
[1641735822247,4.0,139.75,139.68,34.6003]
[1641735822446,12.917,139.75,139.68,32.8113]
[1641735822646,12.917,139.75,139.67,7.15614713]
[1641735822849,27.66479,139.72,139.67,7.15614713]
[1641735823149,37.05579,139.72,139.67,7.15614713]
[1641735823750,37.05579,139.72,139.64,42.35533994]
[1641735824350,37.05579,139.72,139.64,40.56633994]
[1641735824851,4.0,139.71,139.64,7.15793994]
[1641735825955,59.32958,139.72,139.64,7.15793994]
[1641735826157,59.32958,139.72,139.64,13.12193994]
[1641735826354,55.32958,139.72,139.64,13.12193994]
[1641735828359,4.0,139.71,139.64,7.15793994]
[1641735828659,11.135,139.71,139.61,33.5614]
[1641735828860,4.0,139.69,139.61,33.5614]
[1641735829058,27.66479,139.64,139.61,33.5614]
[1641735829259,34.57279,139.64,139.59,7.16024631]
[1641735829861,34.57279,139.64,139.6,0.81363817]
[1641735830661,34.57279,139.64,139.59,7.16024631]
[1641735832263,34.57279,139.64,139.57,1.79]
[1641735833063,34.57279,139.64,139.58,0.81371718]
[1641735833465,34.57279,139.64,139.58,3.47809632]
[1641735833867,34.57279,139.64,139.58,2.66437914]
[1641735834065,34.57279,139.64,139.57,1.79]
[1641735834468,34.57279,139.64,139.59,0.81371655]
[1641735834968,34.57279,139.64,139.58,3.47859067]
[1641735835470,36.57279,139.64,139.55,59.97201314]
[1641735835876,4.0,139.62,139.55,51.71745025]
[1641735836076,4.0,139.62,139.55,49.92745025]
[1641735836276,4.0,139.62,139.56,0.813828]
[1641735836478,40.57279,139.64,139.56,3.48118117]
[1641735836677,4.0,139.62,139.56,3.48118117]
[1641735837278,4.0,139.62,139.57,0.813828]
[1641735837578,4.0,139.62,139.57,3.48118117]
[1641735837981,36.57279,139.64,139.57,3.48118117]
[1641735838179,36.57279,139.64,139.55,22.26266025]
[1641735838180,36.57279,139.64,139.58,2.66735317]
[1641735838381,29.66479,139.64,139.58,2.66735317]
[1641735838984,29.66479,139.64,139.57,8.002]
[1641735839182,33.66479,139.64,139.57,8.002]
[1641735839381,33.66479,139.64,139.56,2.66735317]
[1641735839781,33.66479,139.64,139.58,2.66735317]
[1641735840382,33.66479,139.64,139.57,0.81381215]
[1641735840583,29.66479,139.64,139.56,2.66735317]
[1641735840784,33.66479,139.64,139.56,2.66735317]
[1641735841085,33.66479,139.64,139.57,0.81381644]
[1641735841986,4.0,139.63,139.57,0.81381644]
[1641735842186,29.66479,139.64,139.58,4.0]
[1641735842386,2.0,139.64,139.59,7.16050267]
[1641735842585,2.0,139.64,139.59,14.68148019]
[1641735842987,2.0,139.64,139.6,3.48019415]
[1641735843189,2.0,139.64,139.61,1.79]
[1641735843387,2.0,139.64,139.61,2.60381644]
[1641735843787,2.0,139.64,139.61,1.79]
[1641735844189,2.0,139.64,139.6,1.79]
[1641735844589,11.362,139.64,139.58,16.89010608]
[1641735844789,11.362,139.64,139.61,2.66714605]
[1641735845491,11.362,139.64,139.59,0.81369955]
[1641735845691,11.362,139.64,139.58,2.66714605]
[1641735847093,2.0,139.64,139.58,2.66714605]
[1641735847494,2.0,139.64,139.59,0.813701]
[1641735848394,2.0,139.64,139.58,0.813701]
[1641735848595,8.339,139.64,139.58,0.813701]
[1641735849299,8.339,139.64,139.59,2.66708927]
[1641735850400,8.339,139.64,139.58,2.66708927]
[1641735851099,8.339,139.64,139.59,0.81371027]
[1641735852006,12.339,139.64,139.56,15.10010608]
[1641735852402,12.339,139.64,139.57,0.81380249]
[1641735852803,4.0,139.62,139.57,0.81380249]
[1641735853404,4.0,139.62,139.56,2.67108991]
[1641735853605,4.0,139.63,139.58,2.67108991]
[1641735853804,27.66479,139.6,139.58,2.67108991]
[1641735854004,33.97179,139.6,139.58,2.67108991]
[1641735854408,33.97179,139.6,139.55,13.18024046]
[1641735854604,33.97179,139.6,139.55,28.28034654]
[1641735855105,33.97179,139.6,139.56,0.81384845]
[1641735856208,33.97179,139.6,139.57,2.67108991]
[1641735857707,33.97179,139.6,139.55,17.77119599]
[1641735858109,33.97179,139.6,139.56,0.81388894]
[1641735859010,33.97179,139.6,139.55,17.77119599]
[1641735859210,33.97179,139.6,139.57,2.67108991]
[1641735860114,33.97179,139.6,139.55,2.67108991]
[1641735863417,33.97179,139.6,139.54,15.10010608]
[1641735863617,33.97179,139.6,139.56,0.81386029]
[1641735863917,27.66479,139.6,139.56,0.81386029]
[1641735864117,27.66479,139.6,139.55,0.81386029]
[1641735864317,27.66479,139.6,139.57,2.67108991]
[1641735864919,27.66479,139.6,139.56,2.67108991]
[1641735865617,29.66479,139.6,139.56,2.67108991]
[1641735865818,2.0,139.6,139.55,15.10010608]
[1641735866317,2.0,139.6,139.56,0.81383405]
[1641735867119,2.0,139.6,139.57,2.67108991]
[1641735868021,6.0,139.6,139.57,2.67108991]
[1641735868220,4.0,139.58,139.54,15.10010608]
[1641735868421,4.0,139.57,139.54,15.10010608]
[1641735868621,10.224,139.57,139.51,15.10010608]
[1641735869021,10.224,139.57,139.52,0.81408221]
[1641735869422,10.224,139.57,139.51,15.10010608]
[1641735869721,4.0,139.56,139.5,15.10010608]
[1641735869923,27.66479,139.51,139.5,25.60637007]
[1641735870524,27.66479,139.53,139.5,15.91421838]
[1641735870724,27.66479,139.53,139.5,0.8141123]
[1641735871425,27.66479,139.53,139.5,15.91421838]
[1641735872127,27.66479,139.53,139.51,0.8141123]
[1641735873428,27.66479,139.53,139.5,0.8141123]
[1641735874229,27.66479,139.57,139.5,0.8141123]
[1641735874429,31.66479,139.57,139.5,0.8141123]
[1641735875929,4.0,139.56,139.5,0.8141123]
[1641735876129,68.32958,139.57,139.5,0.8141123]
[1641735876330,4.0,139.55,139.5,0.8141123]
[1641735877731,4.0,139.56,139.5,0.8141123]
[1641735877934,64.32958,139.57,139.5,0.8141123]
[1641735878132,55.32958,139.57,139.5,0.8141123]
[1641735878832,4.0,139.55,139.5,0.8141123]
[1641735880235,27.66479,139.54,139.5,0.8141123]
[1641735880733,34.25979,139.54,139.5,0.8141123]
[1641735884141,27.66479,139.51,139.5,0.8141123]
[1641735884342,36.12379,139.51,139.48,25.59952077]